[Event "35th Staufer-Open-A 2025"]
[Site "Schwaebisch Gmuend"]
[Date "2025.01.05"]
[Round "7.7"]
[White "Dolzhykova, Kateryna"]
[Black "Dgebuadze, Alexandre"]
[Result "1/2-1/2"]
[ECO "B31"]
[WhiteElo "2299"]
[BlackElo "2414"]
[Annotator "TA"]
[PlyCount "79"]
[EventDate "2024.11.24"]
[EventType "swiss"]
[EventCountry "GER"]
[SourceTitle "playchess.com"]
[Source "ChessBase"]
[SourceQuality "1"]
[TimeControl "40/6000+30:1200+30"]

{[%evp 10,79,63,34,43,39,65,16,38,13,15,18,20,0,0,0,0,0,0,0,0,0,12,0,0,-2,6,0,16,0,4,0,10,0,0,0,6,-47,-38,-63,-26,-72,-68,-80,0,-64,-16,-62,-10,-81,-84,-68,-70,-72,-10,-16,0,-25,0,-17,0,0,0,0,0,0,0,0,0,0,0,0]} 1. e4 {[%emt 0:02:00]} c5 {[%emt 0:00:26]} 2. Nf3 {[%emt 0:00:18]} Nc6 {[%emt 0:00:10]} 3. Bb5 {[%emt 0:00:07]} g6 {[%emt 0:00:06]} 4. O-O {[%emt 0:00:07]} Bg7 {[%emt 0:00:04]} 5. Re1 {[%emt 0:00:06]} Qb6 {[%emt 0:02:41]} 6. Bxc6 {[%emt 0:03:24]} bxc6 {[%emt 0:00:51]} 7. Nc3 {[%emt 0:08:08]} e5 {[%emt 0:07:06]} 8. d3 {[%emt 0:02:26]} (8. Na4 $14 Qc7 9. Nxc5) 8... Ne7 {[%emt 0:01:46]} 9. Rb1 {[%emt 0:01:32]} d6 {[%emt 0:02:29]} 10. Be3 {[%emt 0:02:54][%cal Ob2b4]} Qd8 {[%emt 0:01:29]} 11. Qc1 {[%emt 0:05:00]} O-O {[%emt 0:01:59]} 12. Bh6 {[%emt 0:00:38]} f6 {[%emt 0:02:30]} 13. Bxg7 {[%emt 0:05:46]} Kxg7 {[%emt 0:00:31]} 14. Nd2 {[%emt 0:00:03]} Rb8 {[%emt 0:06:33]} 15. b3 {[%emt 0:02:31]} g5 {[%emt 0:08:17]} 16. Nf1 {[%emt 0:07:10]} Ng6 {[%emt 0:02:39]} 17. Ng3 {[%emt 0:02:25]} Rb7 {[%emt 0:05:51]} 18. Nd1 {[%emt 0:00:55]} f5 {[%emt 0:04:50]} 19. exf5 {[%emt 0:06:50]} Bxf5 {[%emt 0:00:27]} 20. Nxf5+ {[%emt 0:00:02]} Rxf5 {[%emt 0:00:12]} 21. c3 {[%emt 0:00:01]} Rbf7 {[%emt 0:06:33]} 22. b4 {[%emt 0:01:56]} g4 {[%emt 0:00:38]} 23. Qe3 {[%emt 0:07:45]} (23. bxc5 $11 Qh4 24. Qe3 (24. cxd6 Rh5 $11)) 23... cxb4 $15 {[%emt 0:04:05]} 24. Rxb4 {[%emt 0:00:30]} Nf4 {[%emt 0:00:26]} 25. Qg3 {[%emt 0:05:24]} (25. Re4 $11 {is superior.}) 25... h5 $17 {[%emt 0:05:03]} 26. h4 {[%emt 0:12:53]} Qa5 {[%emt 0:12:00]} (26... Ng6 $17 27. d4 a6 (27... Nxh4 28. dxe5 dxe5 29. f3 $17) (27... Qxh4 28. Qxh4 Nxh4 29. Rc4 $15)) 27. Rb2 {[%emt 0:04:37]} (27. f3 $1 $11) 27... Nd5 {[%emt 0:02:28]} (27... Kh7 $15) 28. Rc2 {[%emt 0:01:27]} (28. Ne3 $11 Nxe3 29. Qxe3) 28... Qa4 {[%emt 0:02:13]} (28... R5f6 $15) 29. Rb2 {[%emt 0:00:50]} (29. Rd2 $11 {keeps the balance.}) 29... Rf4 {[%emt 0:04:57]} 30. Rd2 {[%emt 0:03:16][%cal Od3d4]} Qa5 {[%emt 0:01:27][%cal Od5e7]} 31. Rc2 {[%emt 0:00:29]} Qc5 {[%emt 0:06:42]} ({Better is} 31... R4f6 $17) 32. Ne3 $11 {[%emt 0:03:26][%cal Od3d4]} Nxe3 {[%emt 0:05:24]} (32... Nxc3 $2 {is the wrong capture.} 33. Nd1 $18 (33. Rec1 $2 Ne2+ 34. Rxe2 Qxc1+ $19)) 33. fxe3 {[%emt 0:01:58] aiming for d4.} R4f5 {[%emt 0:00:57]} 34. Rb1 {[%emt 0:03:33]} Qa5 {[%emt 0:01:44]} 35. Kh2 {[%emt 0:00:37]} Rf1 {[%emt 0:00:30]} 36. Rxf1 {[%emt 0:00:18]} Rxf1 {[%emt 0:00:07]} 37. Rf2 {[%emt 0:00:33]} Rxf2 {[%emt 0:03:52]} 38. Qxf2 {[%emt 0:00:01]} Qc5 {[%emt 0:03:01]} ({Of course not} 38... Qxc3 39. Qf5 $14) 39. Qf5 {[%emt 0:02:19]} Qxe3 {[%emt 0:00:10]} 40. Qd7+ {[%emt 0:00:33]} 1/2-1/2

[Event "35th Staufer-Open-A 2025"]
[Site "Schwaebisch Gmuend"]
[Date "2025.01.05"]
[Round "7.8"]
[White "Toktomushev, Teimur"]
[Black "Meissner, Felix"]
[Result "1-0"]
[ECO "D38"]
[WhiteElo "2262"]
[BlackElo "2372"]
[Annotator "TA"]
[PlyCount "51"]
[EventDate "2024.11.24"]
[EventType "swiss"]
[EventCountry "GER"]
[SourceTitle "playchess.com"]
[Source "ChessBase"]
[SourceQuality "1"]
[TimeControl "40/6000+30:1200+30"]

{[%evp 17,51,7,3,0,28,30,22,15,26,0,13,0,4,0,12,0,7,0,0,0,0,0,0,0,0,-56,12,14,92,6,177,185,787,793,29996,29997]} 1. d4 {[%emt 0:07:18]} Nf6 {[%emt 0:01:07]} 2. c4 {[%emt 0:00:10]} e6 {[%emt 0:00:36]} 3. Nf3 {[%emt 0:00:08]} d5 {[%emt 0:00:16]} 4. Nc3 {[%emt 0:00:08]} Bb4 {[%emt 0:01:24]} 5. Bg5 {[%emt 0:10:14]} h6 {[%emt 0:01:02]} 6. Bxf6 {[%emt 0:01:25]} Qxf6 {[%emt 0:00:07]} 7. Qa4+ {[%emt 0:01:37]} Nc6 {[%emt 0:00:09]} 8. e3 {[%emt 0:00:18]} O-O {[%emt 0:01:06]} 9. cxd5 {[%emt 0:05:10]} exd5 {[%emt 0:00:07]} 10. Bd3 {[%emt 0:00:05]} Bf5 {[%emt 0:14:21]} 11. Bxf5 {[%emt 0:01:01]} Qxf5 {[%emt 0:00:14]} 12. O-O {[%emt 0:00:16]} Bd6 {[%emt 0:16:03] Inhibits Ne5.} 13. Rfe1 {[%emt 0:11:01][%cal Bf1e1,Be1e4,Be4d4][%mdl 32]} a6 {[%emt 0:03:11]} 14. Qb3 {[%emt 0:11:41]} Rfd8 {[%emt 0:07:33]} 15. a3 {[%emt 0:15:38]} (15. Qxd5 $2 Bxh2+ 16. Nxh2 Rxd5 $19) (15. Qxb7 Nb4 16. a3 Rab8 $17) (15. Nxd5 $2 Na5 16. Qc3 Qxd5 $19) 15... Ne7 {[%emt 0:04:37]} 16. e4 {[%emt 0:11:43]} (16. Qxb7 $2 Rdb8 17. e4 Qd7 $19 (17... Rxb7 18. exf5 Rxb2 19. g4 $17)) 16... dxe4 {[%emt 0:00:09]} 17. Rxe4 {[%emt 0:00:13]} b5 {[%emt 0:03:21]} 18. Rae1 {[%emt 0:05:26]} Ng6 {[%emt 0:02:15]} 19. Qc2 {[%emt 0:04:29]} Qd7 {[%emt 0:03:30] Prevents Re8+.} 20. g3 {[%emt 0:05:03]} c5 {[%emt 0:03:48]} 21. h4 {[%emt 0:09:20]} (21. Nd5 $11 Qc6 22. dxc5) 21... cxd4 {[%emt 0:02:19]} (21... Qh3 $15) 22. Rxd4 $11 {[%emt 0:03:54]} Qh3 {[%emt 0:03:45] [#]} (22... Qc7 $11 {keeps the balance.}) 23. Qd1 {[%emt 0:02:13] White is more active.} (23. Qd3 $1 $16 Be7 24. h5 Qxh5 25. Nd5) 23... Bc7 $2 {[%emt 0:22:52]} (23... Be7 $1 $11) 24. Nd5 $18 {[%emt 0:01:58]} Bxg3 $2 {[%emt 0:16:25]} (24... Rxd5 25. Rxd5 Rf8) 25. Ne7+ {[%emt 0:00:14] Excellent horsemanship.} ({Less strong is} 25. fxg3 Qxg3+ 26. Kh1 Kh8 $16) 25... Kh7 {[%emt 0:00:42]} 26. Ng5+ {[%emt 0:00:09]} (26. Rxd8 $2 {is the wrong capture.} Nf4 $19) 1-0

[Event "35th Staufer-Open-A 2025"]
[Site "Schwaebisch Gmuend"]
[Date "2025.01.05"]
[Round "7.9"]
[White "Kolb, Tobias"]
[Black "Herrmann, Jakob"]
[Result "1-0"]
[ECO "D31"]
[WhiteElo "2342"]
[BlackElo "2234"]
[Annotator "TA"]
[PlyCount "67"]
[EventDate "2024.11.24"]
[EventType "swiss"]
[EventCountry "GER"]
[SourceTitle "playchess.com"]
[Source "ChessBase"]
[SourceQuality "1"]
[TimeControl "40/6000+30:1200+30"]

{[%evp 14,67,0,0,0,0,0,0,0,7,8,2,0,-6,-10,-12,-9,-16,-14,-16,0,-22,-10,-9,-15,-13,-8,-27,-12,-23,19,0,0,0,0,0,0,0,0,0,142,141,141,141,199,195,208,212,302,293,299,303,538,521,373,289]} 1. d4 {[%emt 0:01:45]} d5 {[%emt 0:00:08]} 2. c4 {[%emt 0:00:08]} e6 {[%emt 0:00:10]} 3. Nc3 {[%emt 0:00:03]} c6 {[%emt 0:00:09]} 4. e4 {[%emt 0:01:37]} dxe4 {[%emt 0:00:06]} 5. Nxe4 {[%emt 0:00:02]} Bb4+ {[%emt 0:00:10]} 6. Nc3 {[%emt 0:00:03]} c5 {[%emt 0:00:07]} 7. a3 {[%emt 0:00:07]} Bxc3+ {[%emt 0:04:04]} 8. bxc3 {[%emt 0:00:05]} Nf6 {[%emt 0:00:22][%cal Bg8f6,Bf6e4,Be4d2][%mdl 32]} 9. Nf3 {[%emt 0:00:40]} Qa5 {[%emt 0:00:17]} 10. Bd2 {[%emt 0:02:14]} Ne4 {[%emt 0:00:23]} 11. Bd3 {[%emt 0:01:46]} Nxd2 {[%emt 0:00:12]} 12. Qxd2 {[%emt 0:00:08]} O-O {[%emt 0:12:09]} 13. h4 {[%emt 0:22:42]} cxd4 {[%emt 0:23:07]} 14. cxd4 {[%emt 0:00:13]} Nc6 {[%emt 0:01:00]} 15. Be4 {[%emt 0:09:13]} Bd7 {[%emt 0:12:59]} 16. Rb1 {[%emt 0:06:07]} Rab8 {[%emt 0:10:12]} 17. h5 {[%emt 0:10:50]} h6 {[%emt 0:00:55]} (17... Rfd8 18. c5 b6 19. cxb6 Rxb6 20. Rxb6 axb6 21. h6 Be8) 18. Bxc6 {[%emt 0:15:11]} (18. Ne5 {looks sharper.} Qc7 19. Bxc6 Bxc6 20. O-O) 18... Qxd2+ {[%emt 0:00:13]} 19. Kxd2 {[%emt 0:00:03]} Bxc6 {[%emt 0:00:23]} 20. Ke3 {[%emt 0:00:09]} Rfc8 {[%emt 0:08:52] Threatens to win with ...Bxf3.} 21. Rhc1 {[%emt 0:01:29]} b5 {[%emt 0:06:02]} 22. Ne5 {[%emt 0:03:20]} Be8 {[%emt 0:01:23]} 23. cxb5 {[%emt 0:02:26]} Rxc1 {[%emt 0:05:17]} 24. Rxc1 {[%emt 0:00:03]} Rxb5 $11 {[%emt 0:00:06][%mdl 4096] Endgame KRB-KRN} 25. Rc8 {[%emt 0:00:47]} Kf8 $1 {[%emt 0:01:25]} 26. Nc4 {[%emt 0:05:13]} Rb3+ {[%emt 0:01:03]} (26... Rxh5 $6 27. Nd6 Ke7 28. Nxe8 $16) (26... Rd5 $1 $11 {keeps the balance.}) 27. Kd2 $16 {[%emt 0:00:44] Black must now prevent Kc2.} Ke7 {[%emt 0:04:31]} 28. Rc7+ {[%emt 0:01:41]} Kf6 {[%emt 0:03:25]} (28... Kf8 $16) 29. Nd6 $18 {[%emt 0:04:18]} ({Don't play} 29. Rxa7 Kg5 $16) 29... Rb8 {[%emt 0:00:50]} 30. Rxa7 {[%emt 0:00:54]} Kg5 {[%emt 0:01:11]} (30... g6 {was called for.} 31. hxg6 Kxg6) 31. Nxe8 {[%emt 0:01:47]} Rxe8 {[%emt 0:00:04]} 32. Rxf7 {[%emt 0:00:04]} Ra8 $2 {[%emt 0:00:40]} (32... g6 33. hxg6 Kxg6) 33. Rxg7+ {[%emt 0:00:24]} Kxh5 {[%emt 0:00:05]} 34. Rg3 {[%emt 0:00:03]} 1-0

[Event "35th Staufer-Open-A 2025"]
[Site "Schwaebisch Gmuend"]
[Date "2025.01.05"]
[Round "7.10"]
[White "Ohler, Julius"]
[Black "Langheinrich, Ferenc"]
[Result "0-1"]
[ECO "A38"]
[WhiteElo "2235"]
[BlackElo "2338"]
[Annotator "TA"]
[PlyCount "86"]
[EventDate "2024.11.24"]
[EventType "swiss"]
[EventCountry "GER"]
[SourceTitle "playchess.com"]
[Source "ChessBase"]
[SourceQuality "1"]
[TimeControl "40/6000+30:1200+30"]

{[%evp 11,86,16,7,6,17,10,22,16,25,16,40,0,38,18,25,33,17,23,23,20,35,10,24,12,29,25,30,22,41,28,34,47,50,48,46,-15,0,-27,-6,-43,-33,-46,-43,-41,-44,-32,-45,-45,-42,-86,-103,-114,-144,-138,-130,-345,-316,-533,-541,-546,-505,-550,-560,-560,-551,-539,-547,-540,-536,-527,-512,-5022,-5014,-29980,-29980,-29995,-29996]} 1. c4 {[%emt 0:04:38]} Nf6 {[%emt 0:00:18]} 2. Nc3 {[%emt 0:00:08]} d6 {[%emt 0:05:53]} 3. g3 {[%emt 0:00:51]} g6 {[%emt 0:05:12]} 4. Bg2 {[%emt 0:00:05]} Bg7 {[%emt 0:00:06]} 5. d3 {[%emt 0:05:57]} c5 {[%emt 0:01:36]} 6. Nf3 {[%emt 0:02:02]} Nc6 {[%emt 0:00:31]} 7. a3 {[%emt 0:00:56]} a5 {[%emt 0:00:20]} 8. O-O {[%emt 0:01:07]} O-O {[%emt 0:00:33]} 9. Bd2 {[%emt 0:04:10]} e6 {[%emt 0:05:56]} 10. Qc1 {[%emt 0:09:53]} Ne8 {[%emt 0:08:01]} 11. Bg5 {[%emt 0:05:01]} Qd7 {[%emt 0:07:13]} 12. Rd1 {[%emt 0:09:26]} Nc7 {[%emt 0:05:57]} 13. Bh6 {[%emt 0:01:36]} e5 {[%emt 0:16:57]} 14. Bxg7 {[%emt 0:01:58]} Kxg7 {[%emt 0:00:06]} 15. e3 {[%emt 0:00:05]} f5 {[%emt 0:00:54]} 16. Nd5 {[%emt 0:11:12]} Nxd5 {[%emt 0:12:14]} 17. cxd5 {[%emt 0:00:03]} Ne7 {[%emt 0:06:17]} 18. Ng5 {[%emt 0:04:33]} Qd8 {[%emt 0:01:35]} 19. f4 {[%emt 0:01:57]} h6 {[%emt 0:04:52]} 20. Nh3 {[%emt 0:09:01]} exf4 $1 {[%emt 0:02:08]} 21. Qc3+ {[%emt 0:07:52]} Kh7 {[%emt 0:00:26]} 22. Nxf4 {[%emt 0:03:07]} g5 {[%emt 0:04:02]} 23. Ne2 {[%emt 0:07:52]} ({White should play} 23. Nh5 $14 Rf7 24. d4) 23... Ng6 $11 {[%emt 0:04:51]} 24. d4 {[%emt 0:05:31]} b6 {[%emt 0:00:05]} 25. dxc5 {[%emt 0:01:23]} bxc5 {[%emt 0:00:06]} 26. b4 $1 {[%emt 0:00:16]} Ba6 $36 {[%emt 0:00:12][%mdl 2048] White is under pressure.} 27. Nc1 {[%emt 0:00:52]} axb4 {[%emt 0:03:36]} 28. axb4 {[%emt 0:00:04]} cxb4 {[%emt 0:00:21]} 29. Qxb4 {[%emt 0:00:16][%cal Oa1a6] Threatens to win with Rxa6!.} Qe7 {[%emt 0:00:32][%cal Of8b8]} 30. Re1 {[%emt 0:03:30]} Ne5 {[%emt 0:00:28]} 31. Qd4 {[%emt 0:01:22]} Bc4 {[%emt 0:05:33] Against Nb3} 32. Rxa8 {[%emt 0:02:48]} Rxa8 {[%emt 0:00:07]} 33. Ne2 $2 {[%emt 0:01:11]} (33. Qb2 $17) 33... Qb7 $19 {[%emt 0:03:42]} 34. h3 $2 {[%emt 0:03:28]} (34. Nc3 {was called for.}) 34... Bxe2 {[%emt 0:02:02]} 35. Rxe2 {[%emt 0:00:06]} Qb1+ {[%emt 0:00:07]} 36. Kh2 {[%emt 0:00:33]} Ra1 {[%emt 0:01:01][%csl Ga1][%cal Rb1g1]} 37. e4 {[%emt 0:00:04]} f4 {[%emt 0:00:35]} 38. gxf4 {[%emt 0:01:38]} gxf4 {[%emt 0:00:07] And now ...f3 would win.} 39. Rb2 {[%emt 0:00:22] White is weak on the dark squares} Qe1 {[%emt 0:02:24]} 40. Qf2 {[%emt 0:00:21]} f3 {[%emt 0:00:35] Prevents Re2.} 41. Bf1 {[%emt 0:21:47]} (41. Qxe1 $142 Rxe1 42. Rb7+ Kg6 43. Bxf3 Nxf3+ 44. Kg3) 41... Qxf1 {[%emt 0:21:38]} 42. Rb7+ {[%emt 0:00:05] [#]} Kg6 $1 {[%emt 0:01:27][%cal Rf1f2]} 43. Qg3+ {[%emt 0:01:50]} Kh5 {[%emt 0:00:06]} 0-1

[Event "35th Staufer-Open-A 2025"]
[Site "Schwaebisch Gmuend"]
[Date "2025.01.05"]
[Round "7.11"]
[White "Velicka, Petr"]
[Black "Czaeczine, Anne"]
[Result "1/2-1/2"]
[ECO "B51"]
[WhiteElo "2332"]
[BlackElo "2173"]
[Annotator "TA"]
[PlyCount "129"]
[EventDate "2024.11.24"]
[EventType "swiss"]
[EventCountry "GER"]
[SourceTitle "playchess.com"]
[Source "ChessBase"]
[SourceQuality "1"]
[TimeControl "40/6000+30:1200+30"]

{[%evp 9,129,18,25,0,38,38,59,59,56,37,43,43,46,43,58,59,58,59,52,31,37,33,37,25,28,23,22,14,41,33,34,2,6,7,8,0,49,40,70,13,19,0,23,12,18,12,18,0,0,0,43,47,43,33,33,33,33,33,33,33,47,35,49,45,49,43,45,28,28,0,0,0,28,28,42,42,42,42,42,42,42,42,42,42,56,35,20,28,34,0,0,0,56,0,64,64,64,64,64,64,64,63,63,63,63,63,63,63,63,63,63,16,16,16,16,16,16,16,16,16,16,16]} 1. e4 {[%emt 0:00:48]} c5 {[%emt 0:00:04]} 2. Nf3 {[%emt 0:00:27]} d6 {[%emt 0:00:04]} 3. Bb5+ {[%emt 0:00:06]} Nd7 {[%emt 0:00:12]} 4. Ba4 {[%emt 0:00:07]} Ngf6 {[%emt 0:04:20]} 5. O-O {[%emt 0:00:07]} a6 {[%emt 0:02:07][%cal Ob7b5] And now ...b5! would win.} 6. c4 {[%emt 0:00:07]} e5 {[%emt 0:02:05]} 7. Nc3 {[%emt 0:00:35]} Rb8 {[%emt 0:01:00]} 8. d3 {[%emt 0:01:04]} Be7 {[%emt 0:02:45]} 9. a3 {[%emt 0:00:50]} O-O {[%emt 0:00:21]} 10. h3 {[%emt 0:00:19]} Nb6 {[%emt 0:02:38]} 11. Bc2 {[%emt 0:00:11]} Na8 {[%emt 0:02:25]} 12. b4 {[%emt 0:00:09]} b6 {[%emt 0:00:31]} 13. Rb1 {[%emt 0:02:38] and bxc5 should not be overlooked} Bd7 {[%emt 0:01:42]} 14. Nd5 {[%emt 0:02:50]} Nxd5 {[%emt 0:03:09]} 15. exd5 {[%emt 0:12:04]} f5 {[%emt 0:03:04]} 16. bxc5 {[%emt 0:04:08]} bxc5 {[%emt 0:00:16]} 17. Rxb8 {[%emt 0:00:07]} Qxb8 {[%emt 0:00:05]} 18. Ba4 {[%emt 0:00:10]} Bc8 {[%emt 0:04:46]} 19. Bc6 {[%emt 0:03:06]} f4 {[%emt 0:09:02]} 20. Nd2 {[%emt 0:13:28]} Nc7 {[%emt 0:27:12]} 21. f3 {[%emt 0:04:02]} Bf5 {[%emt 0:16:25]} 22. Ne4 {[%emt 0:03:25]} Bxe4 {[%emt 0:00:15]} (22... Qb1 $11) 23. dxe4 $14 {[%emt 0:01:29]} Qb6 {[%emt 0:02:15][%cal Oc7e6]} 24. Ba4 {[%emt 0:00:56]} (24. Rf2 $1 $14 Qa7 25. Rb2) 24... Rb8 $11 {[%emt 0:03:09]} 25. Qc2 {[%emt 0:02:52]} Ne8 {[%emt 0:02:33][%cal Bc7e8,Be8f6,Bf6h5,Bh5g3][%mdl 32]} (25... Nb5 $5) 26. Kf2 {[%emt 0:03:15][%cal Bg1f2,Bf2e2,Be2d3][%mdl 32] Black is weak on the light squares} Kf7 {[%emt 0:03:34]} 27. Ke2 {[%emt 0:00:21]} g5 {[%emt 0:00:37]} 28. Kd3 {[%emt 0:02:30]} h5 {[%emt 0:02:10][%cal Bh7h5,Bh5h4][%mdl 32]} 29. Bd2 {[%emt 0:09:43]} Bd8 {[%emt 0:00:54]} 30. Bc3 {[%emt 0:00:45]} Nf6 {[%emt 0:00:42]} 31. Qe2 {[%emt 0:05:29]} h4 {[%emt 0:02:54]} 32. Bc2 {[%emt 0:00:00]} Nh5 {[%emt 0:00:06]} 33. Rb1 {[%emt 0:00:00]} Qa7 {[%emt 0:00:03]} 34. Qd1 {[%emt 0:00:02]} Ng3 {[%emt 0:00:05]} 35. Ba4 {[%emt 0:01:40]} Rxb1 {[%emt 0:00:17]} 36. Qxb1 {[%emt 0:00:35]} Qb6 {[%emt 0:00:02]} 37. Qc1 {[%emt 0:02:20]} (37. Qxb6 {simplifies} Bxb6 38. Bb3 Nf1 39. Ke2) 37... Qb8 {[%emt 0:02:16]} 38. Kd2 {[%emt 0:00:09]} (38. Qb2 Qc7 39. Qb3 Qa7 40. Kd2) 38... Bc7 {[%emt 0:01:21]} 39. Ke1 {[%emt 0:01:30]} Qd8 {[%emt 0:01:49]} 40. Qd2 {[%emt 0:00:10]} Qb8 {[%emt 0:00:13]} 41. Bc2 {[%emt 0:22:37]} Qb6 {[%emt 0:20:54]} 42. Qd1 {[%emt 0:01:08]} Ke7 {[%emt 0:00:58]} 43. Bd3 {[%emt 0:00:11]} Bd8 {[%emt 0:01:55]} 44. Kf2 {[%emt 0:06:02]} Bc7 {[%emt 0:00:06]} 45. Bc2 {[%emt 0:00:11][%cal Bd3c2,Bc2a4,Ba4c6,Bc6b7][%mdl 32]} Bd8 {[%emt 0:00:02]} 46. Ba4 {[%emt 0:01:22]} Bc7 {[%emt 0:00:53]} 47. Bc6 {[%emt 0:01:36]} Bd8 {[%emt 0:00:56]} 48. Qc2 {[%emt 0:01:51]} Bc7 {[%emt 0:00:07]} 49. Qb2 {[%emt 0:00:45]} Qxb2+ {[%emt 0:01:28]} (49... Nh1+ {seems wilder.} 50. Ke2 Ng3+ 51. Kd3 Nf1) 50. Bxb2 {[%emt 0:00:06][%mdl 4096] Endgame KBB-KBN} Kd8 {[%emt 0:00:15]} (50... Ba5 $11) 51. Bb7 {[%emt 0:00:26]} (51. Bc3 $1 $14) 51... a5 {[%emt 0:00:02]} (51... Ba5 $11) 52. Ke1 {[%emt 0:01:48]} Bb6 {[%emt 0:00:11]} 53. Bc1 {[%emt 0:00:22]} Kc7 {[%emt 0:00:07]} 54. Bc6 {[%emt 0:00:08]} Kb8 {[%emt 0:00:08]} 55. Kd1 {[%emt 0:01:55]} Nf1 {[%emt 0:00:46]} 56. Kc2 {[%emt 0:00:07]} Ne3+ {[%emt 0:00:26]} 57. Bxe3 {[%emt 0:00:42]} fxe3 $14 {[%emt 0:00:03] KB-KB} 58. Kd3 {[%emt 0:00:07]} Bd8 {[%emt 0:00:19]} 59. Kxe3 {[%emt 0:00:08]} Bf6 {[%emt 0:02:57] [#]} 60. f4 {[%emt 0:01:52]} gxf4+ $11 {[%emt 0:00:33]} 61. Kf3 {[%emt 0:00:21]} Kc7 {[%emt 0:00:07]} 62. Kg4 {[%emt 0:00:14]} Bd8 {[%emt 0:00:07]} 63. Kf5 {[%emt 0:00:45]} Be7 {[%emt 0:00:03]} 64. Ke6 {[%emt 0:00:12]} Bd8 {[%emt 0:00:03]} 65. Ba4 {[%emt 0:00:10]} 1/2-1/2

[Event "35th Staufer-Open-A 2025"]
[Site "Schwaebisch Gmuend"]
[Date "2025.01.05"]
[Round "7.12"]
[White "Harshavardhan G B"]
[Black "Gut, Lionel"]
[Result "1-0"]
[ECO "B90"]
[WhiteElo "2405"]
[BlackElo "2152"]
[Annotator "TA"]
[PlyCount "81"]
[EventDate "2024.11.24"]
[EventType "swiss"]
[EventCountry "GER"]
[SourceTitle "playchess.com"]
[Source "ChessBase"]
[SourceQuality "1"]
[TimeControl "40/6000+30:1200+30"]

{[%evp 15,81,0,25,11,17,-6,41,43,33,0,0,0,0,0,0,0,16,10,0,0,0,-13,0,0,0,0,0,-37,18,11,12,16,50,54,52,26,18,0,71,57,77,39,147,88,167,85,177,143,219,219,289,260,727,730,597,544,1579,760,1195,1095,1359,1174,7200,6518,5481,5181,1839,1740]} 1. e4 {[%emt 0:07:23]} c5 {[%emt 0:01:16]} 2. Nf3 {[%emt 0:00:16]} d6 {[%emt 0:00:02]} 3. d4 {[%emt 0:00:20]} cxd4 {[%emt 0:00:02]} 4. Nxd4 {[%emt 0:00:10]} Nf6 {[%emt 0:00:04]} 5. Nc3 {[%emt 0:00:10]} a6 {[%emt 0:00:01]} 6. Be3 {[%emt 0:00:12]} e5 {[%emt 0:00:01]} 7. Nb3 {[%emt 0:00:10]} Be7 {[%emt 0:00:04]} 8. Qd2 {[%emt 0:00:08]} Be6 {[%emt 0:00:05]} 9. O-O-O {[%emt 0:00:14]} Nbd7 {[%emt 0:03:12]} 10. f4 {[%emt 0:00:14][%cal Bf2f4,Bf4f5][%mdl 32]} Rc8 {[%emt 0:11:25]} (10... b5 $11 {deserves consideration.}) 11. f5 $14 {[%emt 0:06:24]} Bc4 {[%emt 0:01:34] [#]} 12. g4 $1 {[%emt 0:01:18]} Nxg4 {[%emt 0:03:50]} 13. Rg1 {[%emt 0:00:24]} Nxe3 {[%emt 0:02:19]} 14. Qxe3 {[%emt 0:01:26]} Bxf1 {[%emt 0:06:28]} 15. Rdxf1 {[%emt 0:00:10]} Bf8 {[%emt 0:02:04]} 16. Nd5 {[%emt 0:08:38]} Nf6 {[%emt 0:00:45]} 17. Nxf6+ {[%emt 0:00:30]} gxf6 {[%emt 0:01:20]} 18. Rd1 {[%emt 0:07:26]} Qc7 {[%emt 0:07:06]} 19. c3 {[%emt 0:00:32]} h5 {[%emt 0:09:32] ...Bh6 is the strong threat.} 20. Kb1 {[%emt 0:00:28]} h4 {[%emt 0:01:37]} 21. Rg4 {[%emt 0:05:34]} Ke7 {[%emt 0:02:42]} ({Better is} 21... Bh6 $15 22. Qh3 (22. Rxh4 $2 Bxe3 23. Rxh8+ Ke7 $19) 22... Bf4) 22. Qd3 $11 {[%emt 0:01:28]} Bh6 {[%emt 0:01:32]} 23. Rxh4 {[%emt 0:01:10]} Bg5 {[%emt 0:00:09]} 24. Rxh8 $1 {[%emt 0:01:18]} Rxh8 {[%emt 0:00:02]} 25. h3 {[%emt 0:00:12]} b5 {[%emt 0:10:01]} 26. Na5 {[%emt 0:08:30][%cal Od3d5]} Rd8 {[%emt 0:00:15]} (26... Qxa5 $2 27. Qxd6+ Ke8 28. b4 $18 (28. Qb8+ Ke7 $18)) (26... d5 27. Qxd5 Rxh3 (27... Qxa5 28. Qc5+ Ke8 29. Qc8+ Ke7 30. Rd7#) 28. a4 $16 (28. Nb7 Kf8 $18)) (26... Kf8 $1 $11 27. Qxd6+ Qxd6 28. Rxd6 Rh4) 27. b4 $16 {[%emt 0:00:40]} Rc8 {[%emt 0:02:23]} 28. Kc2 {[%emt 0:01:30]} Bh6 {[%emt 0:01:39] [#]} (28... Bh4 $14) 29. Kb3 {[%emt 0:00:54]} ({White should play} 29. h4 $1) 29... Bf8 {[%emt 0:13:49]} (29... Bg5 $16) 30. Rc1 {[%emt 0:01:56]} (30. a4 $18) 30... Qb8 {[%emt 0:01:56]} (30... Bh6 $16 {was worth a try.} 31. Ra1 Bg5) 31. c4 {[%emt 0:06:34]} Ke8 {[%emt 0:01:32]} (31... Bh6 $16 32. Rd1 Qc7) 32. Rc2 $18 {[%emt 0:01:38]} bxc4+ {[%emt 0:02:25]} 33. Rxc4 {[%emt 0:00:10]} Be7 $2 {[%emt 0:02:03]} (33... Rc5) 34. Rxc8+ {[%emt 0:01:15]} Qxc8 {[%emt 0:00:02][%mdl 4096] Endgame KQB-KQN} 35. Qc4 {[%emt 0:00:17]} Kd7 {[%emt 0:01:17]} 36. Qxc8+ {[%emt 0:00:56]} Kxc8 {[%emt 0:00:04]} 37. Nc6 {[%emt 0:01:02]} Bf8 {[%emt 0:00:09]} 38. Kc4 {[%emt 0:00:06] and Kd5 should not be overlooked} Kc7 {[%emt 0:01:01]} 39. Kd5 {[%emt 0:00:18]} Bh6 {[%emt 0:00:02]} 40. h4 {[%emt 0:01:10]} Be3 {[%emt 0:00:08]} 41. Na5 {[%emt 0:20:26]} 1-0